Cogmind - Beta 14 --- EXPLORER MODE // 2024.11.19 @ 06:06:16 Player: Nah Bohdi Result: Destroyed by D-53 Grenadier with Mini Grenade Launcher Performance ------------- Evolutions (0) 0 Regions Visited (0) 0 Robots Destroyed (7) 35 Value Destroyed (82) 82 Prototype IDs (0) 0 Alien Tech Used (0) 0 Bonus (0) 0 TOTAL SCORE: 117 Bonus ------- None Cogmind --------- Core Integrity 0/250 Matter 300/300 Energy 250/250 System Corruption 10% Temperature Cool (0) Movement Rolling (80) Location -11/Scrapyard Parts ------- > --- POWER (1) -------- Ion Engine > --- PROPULSION (2) --- Wheel (fused) > --- UTILITY (2) ------ Improved Terrain Scanner > --- WEAPON (2) ------- (None) > --- INVENTORY (5) ---- Light Ion Engine Light Treads Wheel Small Matter Pod (50) Improved Terrain Scanner Peak State ------------ > --- POWER ------------ Ion Engine > --- PROPULSION ------- Light Treads Wheel > --- UTILITY ---------- Improved Terrain Scanner Seismic Detector > --- WEAPON ----------- Medium Laser > --- INVENTORY -------- Light Ion Engine [Rating: 8] Favorites ----------- Power Light Ion Engine Engine Light Ion Engine Propulsion Light Treads Treads Light Treads Wheel Wheel Utility Targeting Computer Device Improved Terrain Scanner Processor Targeting Computer Protection Propulsion Shielding Weapon Assault Rifle Energy Gun Medium Laser Ballistic Gun Assault Rifle Build | -11 ------- Run | Yrd Slots Evolved . | . Power . | . Propulsion . | . Utility . | . Weapon . | . Parts Attached 18 | 18 Power 2 | 2 Engine 2 | 2 Core . | . Reactor . | . Propulsion 6 | 6 Treads 2 | 2 Leg . | . Wheel 4 | 4 Hover . | . Flight . | . Utility 7 | 7 Device 3 | 3 Storage . | . Processor 2 | 2 Hackware . | . Protection 2 | 2 Artifact . | . Weapon 3 | 3 Energy Gun 1 | 1 Energy Cannon . | . Ballistic Gun 2 | 2 Ballistic Cannon . | . Launcher . | . Special Weapon . | . Impact Weapon . | . Slashing Weapon . | . Piercing Weapon . | . Special Melee Weapon . | . Unidentified Prototypes . | . Parts Lost 12 | 12 Power 1 | 1 Propulsion 2 | 2 Utility 6 | 6 Weapon 3 | 3 Highest Loss Streak 9 | 9 To Critical Strikes 1 | 1 Average Slot Usage (%) . | . Peak Build Rating 8 | 8 Average Rating 6 | 6 On Entrance . | . Naked Turns . | . Heaviest Build 11 | 11 Greatest Support 40 | 40 Greatest Overweight (x) 1 | 1 Average Overweight (x) . | . Largest Inventory Capacity 5 | 5 Average Capacity 5 | 5 Most Carried 5 | 5 Average Carried 4 | 4 Final Capacity 5 | 5 Final Carried 5 | 5 Class Distribution -------------------- None Dominant Class ---------------- None Resources | -11 ----------- Run | Yrd Matter Collected 484 | 484 Remotely 84 | 84 Salvage Created 216 | 216 Parts 14 | 14 Haulers Intercepted . | . Recyclers Shooed . | . Parts Field Recycled . | . Retrieved Matter . | . Parts Self-Destructed . | . Prevented . | . Kills | -11 ------- Run | Yrd Combat Hostiles Destroyed 5 | 5 Guns 4 | 4 Classes Destroyed 5 | 5 Worker 2 | 2 Tunneler 3 | 3 Recycler 1 | 1 Demolisher 1 | 1 Assembled 4 | 4 Best Kill Streak 4 | 4 Combat Bots Only 3 | 3 Max Kills in Single Turn 1 | 1 Gunslinging . | . Exploded . | . Melee . | . Uniques/NPCs Destroyed . | . Combat | -11 -------- Run | Yrd Hostile Shots Fired 72 | 72 Missed 6 | 6 Damage Taken 1091 | 1091 Core 250 | 250 Absorbed by Shields . | . Redirected to Shielding 35 | 35 Ignored by Resistances 608 | 608 Core Remaining (%) . | . Volleys Fired 42 | 42 Largest 2 | 2 Hottest 50 | 50 Shots Fired 55 | 55 Gun 55 | 55 Cannon . | . Launcher . | . Special . | . Kinetic 29 | 29 Thermal 26 | 26 Explosive . | . Electromagnetic . | . Robot Hit Streak 12 | 12 Robot Miss Streak 2 | 2 Penetration Max . | . Secondary Targets 2 | 2 Max Gunslinging Chain 1 | 1 Shots Hit Robots 41 | 41 Core Hits 18 | 18 Critical Kills . | . Critical Parts Destroyed 1 | 1 Critical Strikes 2 | 2 Burn 1 | 1 Destroy 1 | 1 Melee Attacks . | . Impact . | . Slashing . | . Piercing . | . Sneak Attacks . | . Combat Hostiles . | . Follow-up Attacks . | . Damage Inflicted 525 | 525 Guns 521 | 521 Cannons . | . Explosions . | . Melee . | . Ramming 4 | 4 Kinetic 323 | 323 Thermal 198 | 198 Explosive . | . Electromagnetic . | . Impact . | . Slashing . | . Piercing . | . Highest Corruption 10 | 10 Average Corruption 7 | 7 Corruption Purged . | . Corruption Blocked . | . Effects 20 | 20 Message Errors 8 | 8 Matter Fused 6 | 6 Energy Discharges 1 | 1 Parts Fused 1 | 1 Data Loss (minor) 1 | 1 Misfires 1 | 1 Weapon Failures 2 | 2 Overload Shots . | . Overflow Damage . | . Projectiles . | . Explosions . | . Melee . | . Knockbacks . | . Impact . | . Kinetic . | . Secondary . | . Self-Inflicted Damage 2 | 2 Shots . | . Rammed 1 | 1 Targets Rammed 1 | 1 Kicked . | . Crushed . | . Highest Temperature 53 | 53 Average Temperature 18 | 18 Received Heat Transfer 120 | 120 Siege Activations . | . Robots Corrupted . | . Combat Hostiles . | . Parts Fried . | . Impact Corruptions . | . Robots Melted 1 | 1 Combat Hostiles 1 | 1 Parts Melted 1 | 1 Heat Transferred 666 | 666 Parts Sabotaged . | . Parts Stolen . | . Parts Stripped . | . Power Chain Reactions . | . Alert | -11 ------- Run | Yrd Peak Influence 20 | 20 Initial . | . Average 2 | 2 Maximum Alert Level . | . Low Security (%) 100 | 100 Level 1 . | . Level 2 . | . Level 3 . | . Level 4 . | . Level 5 . | . High Security . | . Max Security . | . Squads Dispatched . | . Investigation . | . Extermination . | . Reinforcement . | . Assault . | . Garrison . | . Intercept . | . Searches Triggered . | . Construction Impeded . | . Haulers Reinforced . | . Active Scanning Responses . | . Cargo Convoy Interrupts . | . Stealth | -11 --------- Run | Yrd Distress Signals . | . Communications Jammed . | . Distress Signals . | . Times Spotted 27 | 27 Peak Tracking Total 20 | 20 Tactical Retreats 1 | 1 Traps | -11 ------- Run | Yrd Traps Triggered . | . Indirectly . | . Trap Hack Attempts . | . Triggered . | . Disarmed . | . Reprogrammed . | . Reused . | . Traps Extracted . | . Installed . | . Triggered . | . Machines | -11 ---------- Run | Yrd Machines Disabled . | . Max in Single Turn . | . Machines Repaired . | . Machines Dismantled . | . Machines Sabotaged . | . Overloaded Fab Kills . | . Hacking | -11 --------- Run | Yrd Machines Accessed . | . Terminals . | . Fabricators . | . Repair Stations . | . Recycling Units . | . Scanalyzers . | . Garrison Access . | . Total Hacks . | . Successful . | . Failed . | . Catastrophic . | . Database Lockouts . | . Manual . | . Terminals . | . Fabricators . | . Repair Stations . | . Recycling Units . | . Scanalyzers . | . Garrison Access . | . Terminal Hacks . | . Fabricator Hacks . | . Repair Station Hacks . | . Recycling Unit Hacks . | . Scanalyzer . | . Garrison Access Hacks . | . Unauthorized Hacks . | . Terminals . | . Fabricators . | . Repair Stations . | . Recycling Units . | . Scanalyzers . | . Garrison Access . | . Data Cores Recovered . | . Used . | . Hacking Detections . | . Full Trace Events . | . Feedback Events . | . Feedback Blocked . | . Robot Schematics Acquired . | . Robots Built . | . Authchips . | . Time . | . Total Robot Build Rating . | . Part Schematics Acquired . | . Parts Built . | . Authchips . | . Time . | . Total Part Build Rating . | . Parts Repaired . | . Time . | . Parts Recycled . | . Recycled Matter . | . Retrieved Matter . | . Retrieved Components . | . Parts Scanalyzed . | . Part Schematics Acquired . | . Parts Damaged . | . Bothacking | -11 ------------ Run | Yrd Used RIF Installer . | . Robots Hacked . | . Non-combat . | . Combat . | . Robot Hacks Applied . | . Relay Couplers Released . | . Fabnet Peak Effective % . | . Robots Rewired . | . Allies Hacked . | . Hacks Repelled . | . Allies | -11 -------- Run | Yrd Total Allies . | . Largest Group . | . Highest-Rated Group . | . Highest-Rated Ally . | . Total Orders . | . Ally Attacks . | . Total Damage . | . Kills . | . Allies Corrupted . | . Allies Melted . | . Intel | -11 ------- Run | Yrd Robot Analysis Total . | . Derelict Logs Recovered . | . Drone Launches . | . Drone Recoveries . | . Exploration | -11 ------------- Run | Yrd Turns Passed 2326 | 2326 Spaces Moved 772 | 772 Core 27 | 27 Treads 403 | 403 Legs . | . Wheels 342 | 342 Hover . | . Flight . | . Fastest Speed 50 | 50 Average Speed 121 | 121 Slowest Speed 160 | 160 Overloaded Moves . | . Propulsion Burnouts . | . Robots Hopped . | . Cave-ins Triggered 2 | 2 Exploration Rate (%) 44 | 44 Regions Visited . Branch Regions . Pre-discovered Areas . | . Known Exits Taken . | . Unknown Exits Taken . | . Scrap Searched . | . Spaces Dug . | . Terrain Destroyed . | . Melee . | . Projectile . | . AOE . | . Terrain Rammed . | . Walls Destroyed . | . Machines Disabled . | . Actions | -11 --------- Run | Yrd Total 2103 | 2103 Wait 1248 | 1248 Move 770 | 770 Hop . | . Pick Up 20 | 20 Fast Attach 1 | 1 Attach 16 | 16 Detach 1 | 1 Swap 1 | 1 Drop 1 | 1 Fire 42 | 42 Melee . | . Ram 1 | 1 Kick . | . Crush . | . Escape Stasis 2 | 2 Rewire . | . Trap . | . Miscellaneous . | . Route ------- -11/Scrapyard (discovered 1 exit: *Mat) History --------- Turn | Location | Event 8 | -11/Scrapyard | Identified exit to Materials 8 | -11/Scrapyard | Discovered exit to Materials (range 16) 1782 | -11/Scrapyard | Assembled infested the area 1892 | -11/Scrapyard | Lost 9 parts (1p1n5u2w) 2022 | -11/Scrapyard | Crushed by falling debris 2023 | -11/Scrapyard | Core integrity fell below 50% 2323 | -11/Scrapyard | Crushed by falling debris 2324 | -11/Scrapyard | System corruption reached 10% 2326 | -11/Scrapyard | Core integrity fell below 20% 2327 | -11/Scrapyard | Destroyed by D-53 Grenadier with Mini Grenade Launcher Last Messages --------------- 02173_ Acquired Imp. Terrain Scanner. 02178_ T-07 Excavator destroyed. 02184_ Acquired Wheel. 02187_ System corrupted: Matter fused (-6). 02207_ Slammed into K-01 Serf. 02225_ K-01 Serf destroyed. 02227_ Acquired 4 matter. 02232_ BBRXMDMFT W8P: P1D1|#1MHA5HZALNQLOU7 02251_ System corrupted: Wheel fused. 02255_ Acquired Sml. Matter Pod. 02265_ The unstable cave ceiling collapses. 02266_ Med. Laser destroyed. 02267_ System corrupted: Component data lost. 02271_ The unstable cave ceiling collapses. 02289_ ZBV6VC05S5NRDV2NFW87DTH9UY8XBIUMNFZ OT 02316_ Wheel destroyed. 02322_ The unstable cave ceiling collapses. 02323_ Crushed by falling debris. 02323_ Seismic Detector destroyed. 02323_ System corrupted by crushing effect (+2). Map ----- +----------------------------------------------------+ | | | | | | | | | | | | | | | | | | | | | | | | | | | | | | | | | | | | | | | ???????????????????????????????#?????#???????????? | | ?????????????????????######??????????????????????? | | ?????????????#???????# ####???????????????????? | | ????????#?##?#??#????# ###?????##????????????? | | ????????????????????## # ##??????????????????? | | ???????????#???#???## d #??????????????????? | | ??????????????????## " @ # #??????##??????????? | | ??????????????????# # #??????????????????? | | ??????????#?#?????# " #???#??????????????? | | ?????????????????## " #??#?#?????????????? | | ??????????????????## ###??????????????????? | | ???????????????????# " ##?##????????????????? | | ?????????????????#?# ######???#??????????????? | | ???????????#????###### ##?#?????????????????????? | | ??????????????### ## ##########??????????#?????? | | ?????????#??#?# # ##??#?????????????? | | ??????????????# #????????#???????? | | ?????????#??#?# #?#??????????????? | | ?????????????## #?##???????#?????? | | ??????????????# #????????????????? | | ?????????#????#### # ######???##???????????? | | ??????????????# #??##??############ | | ??????????????# ###???## # | | ??????????????# # #????## !# | | ???????????# # #?????# =%# | | ???????????# # #???### # | | ???????????# # ##??#??# = | | ???????????# ####### %# ############ | | ?????????#?##??#?#### " #### ############ # | | ????????????#????## % !! | | ????????#?????????# %* | +----------------------------------------------------+ Best States ------------- Heat Dissipation 25 Energy Generation 10 Energy Capacity 250 Matter Stores 300 Matter Capacity 300 Sight Range 16 Terrain Scan Range 16 Terrain Scan Density 10 Armor Coverage 150 Resistance: KI 35 Resistance: TH 35 Resistance: EX 35 Resistance: EM 35 Resistance: I 35 Resistance: S 35 Resistance: P 35 Propulsion Shielding 33 Evasion (%) 50 Targeting Accuracy 10 Recoil Reduction 2 Offensive Hacking 20 Item Schematics ----------------- None Robot Schematics ------------------ None Fabricated ------------ Nothing Alien Tech Used ----------------- None Achievements -------------- Hunted Challenges ------------ None Game ------ Seed GreatEnergyLoader Manual? 0 Play Time 00:14:54 Cumulative 21.6 hours Start 2024.11.19 @ 05:58:47 End 2024.11.19 @ 06:06:16 Sessions 0 Manual Loads 0 Difficulty Explorer Special Mode None Game No. 13 Rogue 0 Adventurer 0 Explorer 13 Win Type - Total 0 Types 0/0/0/0/0/0/0/0/0 Lore% 15 Gallery% 23 Achievement% 21 Wizard Run 0 Options --------- Layout 1 ASCII 0 Keyboard 0 Movement Numpad Keybinds 0 Fullscreen 1 Font 24/Smallcaps Map View 50x35 Zoom Use 0% Tactical HUD 1 Map Filters NONE Filters NONE Steam 1 RUN: bc4278fe-5485-478d-a334-ac56d213b76f